[Event "*** Titled Tuesday Blitz"]
[Site "Chess.com"]
[Date "2021.02.02"]
[Round "9"]
[White "boasovietica"]
[Black "c_r_e_e_p_e_r"]
[Result "0-1"]
[WhiteElo "2493"]
[BlackElo "2391"]
[TimeControl "180+1"]
[EndTime "11:46:34 PST"]
[Termination "c_r_e_e_p_e_r won on time"]

1. e4 {[%clk 0:03:00.9]} 1... c5 {[%clk 0:03:00.1]} 2. Nf3 {[%clk 0:03:00.7]}
2... e6 {[%clk 0:03:00.7]} 3. d4 {[%clk 0:03:00.8]} 3... cxd4 {[%clk 0:03:01.6]}
4. Nxd4 {[%clk 0:03:01.4]} 4... a6 {[%clk 0:03:02.3]} 5. Bd3 {[%clk 0:02:59.2]}
5... Nf6 {[%clk 0:03:02.4]} 6. Nc3 {[%clk 0:02:58.8]} 6... Qc7 {[%clk
0:03:02.5]} 7. O-O {[%clk 0:02:58.9]} 7... b5 {[%clk 0:03:02.9]} 8. Nb3 {[%clk
0:02:48.1]} 8... Bb7 {[%clk 0:03:02.8]} 9. Qe2 {[%clk 0:02:42.4]} 9... d6 {[%clk
0:02:58.3]} 10. f4 {[%clk 0:02:40.2]} 10... Nbd7 {[%clk 0:02:58.2]} 11. Bd2
{[%clk 0:02:39.1]} 11... Be7 {[%clk 0:02:58.1]} 12. Rae1 {[%clk 0:02:39.1]}
12... h5 {[%clk 0:02:58.4]} 13. Kh1 {[%clk 0:02:32.4]} 13... h4 {[%clk 0:02:56]}
14. e5 {[%clk 0:02:21.7]} 14... h3 {[%clk 0:02:54.6]} 15. Rf2 {[%clk 0:01:16.6]}
15... hxg2+ {[%clk 0:02:45.5]} 16. Rxg2 {[%clk 0:01:16.4]} 16... dxe5 {[%clk
0:02:34.7]} 17. fxe5 {[%clk 0:01:15.5]} 17... Nxe5 {[%clk 0:01:51.7]} 18. Qxe5
{[%clk 0:01:10.3]} 18... Bd6 {[%clk 0:01:47.9]} 19. Qxd6 {[%clk 0:00:16.2]}
19... Bxg2+ {[%clk 0:01:40.4]} 20. Kxg2 {[%clk 0:00:17.1]} 20... Qxd6 {[%clk
0:01:40.7]} 21. h3 {[%clk 0:00:13.7]} 21... Nh5 {[%clk 0:01:14.3]} 22. Ne4
{[%clk 0:00:13]} 22... Qd5 {[%clk 0:01:14.6]} 23. Kf2 {[%clk 0:00:08.2]} 23...
Qf5+ {[%clk 0:01:04.1]} 24. Kg2 {[%clk 0:00:06.5]} 24... Nf4+ {[%clk 0:00:59]}
25. Bxf4 {[%clk 0:00:04.3]} 25... Qxf4 {[%clk 0:00:59.1]} 26. Rf1 {[%clk
0:00:04.4]} 26... Qe5 {[%clk 0:00:49.8]} 27. Rf3 {[%clk 0:00:02.7]} 27... f5
{[%clk 0:00:31.3]} 28. Nf2 {[%clk 0:00:02.7]} 28... g5 {[%clk 0:00:25.5]} 29.
Rg3 {[%clk 0:00:02]} 29... Rg8 {[%clk 0:00:18.5]} 30. Nd2 {[%clk 0:00:02.3]}
30... Qxb2 {[%clk 0:00:15.4]} 31. Re3 {[%clk 0:00:02]} 31... Kf7 {[%clk
0:00:13.9]} 32. Nf3 {[%clk 0:00:02.3]} 32... Qf6 {[%clk 0:00:12.3]} 33. Ne5+
{[%clk 0:00:02.5]} 33... Kg7 {[%clk 0:00:12.4]} 34. Nd7 {[%clk 0:00:02.2]} 34...
Qe7 {[%clk 0:00:11.4]} 35. Ne5 {[%clk 0:00:02.3]} 35... Rac8 {[%clk 0:00:09.5]}
36. Rg3 {[%clk 0:00:02.3]} 36... Qf6 {[%clk 0:00:08.4]} 37. Nf3 {[%clk
0:00:02.6]} 37... Kf7 {[%clk 0:00:07.4]} 38. Nd1 {[%clk 0:00:02.2]} 38... g4
{[%clk 0:00:07.3]} 39. Ng1 {[%clk 0:00:01.5]} 39... gxh3+ {[%clk 0:00:07.5]} 40.
Nxh3 {[%clk 0:00:02.1]} 40... Rxg3+ {[%clk 0:00:07.9]} 41. Kxg3 {[%clk 0:00:03]}
41... Rg8+ {[%clk 0:00:08.1]} 42. Kh2 {[%clk 0:00:03.4]} 42... Qe5+ {[%clk
0:00:08.4]} 43. Kh1 {[%clk 0:00:03.9]} 43... Qe1+ {[%clk 0:00:08.2]} 44. Kh2
{[%clk 0:00:03.9]} 44... Qg3+ {[%clk 0:00:08.7]} 0-1

[Event "*** Titled Tuesday Blitz"]
[Site "Chess.com"]
[Date "2021.02.02"]
[Round "9"]
[White "RobertoJBM"]
[Black "PotapovaM"]
[Result "0-1"]
[WhiteElo "2771"]
[BlackElo "2659"]
[TimeControl "180+1"]
[EndTime "11:46:35 PST"]
[Termination "PotapovaM won on time"]

1. d4 {[%clk 0:02:55.1]} 1... Nf6 {[%clk 0:02:59.7]} 2. Nf3 {[%clk 0:02:52.9]}
2... e6 {[%clk 0:02:59.6]} 3. e3 {[%clk 0:02:52.5]} 3... b6 {[%clk 0:02:54.6]}
4. Bd3 {[%clk 0:02:52.4]} 4... Bb7 {[%clk 0:02:54.6]} 5. Qe2 {[%clk 0:02:52.7]}
5... c5 {[%clk 0:02:37.5]} 6. c3 {[%clk 0:02:51.6]} 6... Nc6 {[%clk 0:02:32.4]}
7. O-O {[%clk 0:02:49.3]} 7... Be7 {[%clk 0:02:31.8]} 8. Nbd2 {[%clk 0:02:48.8]}
8... O-O {[%clk 0:02:31]} 9. a3 {[%clk 0:02:49.4]} 9... d6 {[%clk 0:02:24.6]}
10. e4 {[%clk 0:02:48.6]} 10... e5 {[%clk 0:02:24.8]} 11. d5 {[%clk 0:02:48.7]}
11... Nb8 {[%clk 0:02:23.2]} 12. Re1 {[%clk 0:02:48.6]} 12... g6 {[%clk
0:01:58.7]} 13. a4 {[%clk 0:02:44.3]} 13... a6 {[%clk 0:01:50.9]} 14. Nf1 {[%clk
0:02:42.4]} 14... Nh5 {[%clk 0:01:45.5]} 15. g3 {[%clk 0:02:39.6]} 15... Nd7
{[%clk 0:01:44.2]} 16. Bh6 {[%clk 0:02:36.5]} 16... Ng7 {[%clk 0:01:42.4]} 17.
Ne3 {[%clk 0:02:34.4]} 17... f6 {[%clk 0:01:30.3]} 18. h4 {[%clk 0:02:32.1]}
18... Rf7 {[%clk 0:01:24.4]} 19. Rf1 {[%clk 0:02:29.8]} 19... Nh5 {[%clk
0:01:19.2]} 20. Ng2 {[%clk 0:02:22.6]} 20... Bf8 {[%clk 0:01:18.7]} 21. Bd2
{[%clk 0:02:21.5]} 21... Bc8 {[%clk 0:01:01.3]} 22. Nh2 {[%clk 0:02:20]} 22...
Ng7 {[%clk 0:00:59]} 23. Ng4 {[%clk 0:02:19]} 23... Kh8 {[%clk 0:00:57.7]} 24.
f4 {[%clk 0:02:13.6]} 24... exf4 {[%clk 0:00:54.3]} 25. Bxf4 {[%clk 0:02:05.7]}
25... f5 {[%clk 0:00:50.6]} 26. Nh6 {[%clk 0:01:54.7]} 26... Re7 {[%clk
0:00:50.8]} 27. Bg5 {[%clk 0:01:54.7]} 27... Nh5 {[%clk 0:00:51.5]} 28. Nf7+
{[%clk 0:01:48.7]} 28... Rxf7 {[%clk 0:00:46.6]} 29. Bxd8 {[%clk 0:01:48.5]}
29... Ne5 {[%clk 0:00:46.7]} 30. exf5 {[%clk 0:01:08.4]} 30... Nxg3 {[%clk
0:00:40.6]} 31. Qe3 {[%clk 0:01:01.2]} 31... Nxf5 {[%clk 0:00:40.6]} 32. Bxf5
{[%clk 0:01:00.4]} 32... Bxf5 {[%clk 0:00:41.5]} 33. Bxb6 {[%clk 0:00:56.2]}
33... Nc4 {[%clk 0:00:40.4]} 34. Qg5 {[%clk 0:00:47.8]} 34... Nxb6 {[%clk
0:00:38.3]} 35. Ne3 {[%clk 0:00:46.2]} 35... Be7 {[%clk 0:00:36.5]} 36. Qg3
{[%clk 0:00:45.8]} 36... Raf8 {[%clk 0:00:34]} 37. Nxf5 {[%clk 0:00:44.8]} 37...
gxf5 {[%clk 0:00:34.9]} 38. Kh1 {[%clk 0:00:44.2]} 38... Nxd5 {[%clk 0:00:31.9]}
39. Rae1 {[%clk 0:00:42]} 39... f4 {[%clk 0:00:30.7]} 40. Qf3 {[%clk 0:00:42.2]}
40... Rf5 {[%clk 0:00:26.6]} 41. Qe4 {[%clk 0:00:40]} 41... Bxh4 {[%clk
0:00:25.2]} 42. Rf3 {[%clk 0:00:38.6]} 42... Bxe1 {[%clk 0:00:23.8]} 43. Qxe1
{[%clk 0:00:39.5]} 43... Ne3 {[%clk 0:00:23.4]} 44. Qe2 {[%clk 0:00:37.5]} 44...
Rh5+ {[%clk 0:00:19.9]} 45. Kg1 {[%clk 0:00:35.4]} 45... Rg8+ {[%clk 0:00:20.2]}
0-1

[Event "*** Titled Tuesday Blitz"]
[Site "Chess.com"]
[Date "2021.02.02"]
[Round "9"]
[White "noblerone"]
[Black "MikeSailer"]
[Result "1-0"]
[WhiteElo "2409"]
[BlackElo "2198"]
[TimeControl "180+1"]
[EndTime "11:46:35 PST"]
[Termination "noblerone won on time"]

1. d4 {[%clk 0:03:00.9]} 1... d5 {[%clk 0:02:56.4]} 2. Nf3 {[%clk 0:03:00.7]}
2... Bf5 {[%clk 0:02:55.8]} 3. c4 {[%clk 0:02:58.2]} 3... e6 {[%clk 0:02:55.3]}
4. Nc3 {[%clk 0:02:58.1]} 4... Nc6 {[%clk 0:02:54.9]} 5. a3 {[%clk 0:02:55.6]}
5... Nf6 {[%clk 0:02:50]} 6. Bg5 {[%clk 0:02:53.8]} 6... Be7 {[%clk 0:02:50]} 7.
e3 {[%clk 0:02:53.8]} 7... h6 {[%clk 0:02:50.2]} 8. Bh4 {[%clk 0:02:53.3]} 8...
O-O {[%clk 0:02:48.9]} 9. Be2 {[%clk 0:02:46.9]} 9... Ne4 {[%clk 0:02:48.9]} 10.
Bxe7 {[%clk 0:02:45.6]} 10... Nxe7 {[%clk 0:02:47.7]} 11. O-O {[%clk 0:02:39]}
11... c6 {[%clk 0:02:26.4]} 12. h3 {[%clk 0:02:07]} 12... Bh7 {[%clk 0:02:06.4]}
13. Rc1 {[%clk 0:01:45.1]} 13... Nxc3 {[%clk 0:01:56.5]} 14. Rxc3 {[%clk
0:01:39]} 14... Nf5 {[%clk 0:01:56.2]} 15. c5 {[%clk 0:01:28.9]} 15... Rc8
{[%clk 0:01:30.5]} 16. b4 {[%clk 0:01:25.6]} 16... Nh4 {[%clk 0:01:25.7]} 17. a4
{[%clk 0:01:04.2]} 17... Nxf3+ {[%clk 0:01:21.2]} 18. Bxf3 {[%clk 0:01:05.1]}
18... Be4 {[%clk 0:01:16]} 19. b5 {[%clk 0:00:41.2]} 19... Bxf3 {[%clk
0:01:05.4]} 20. Qxf3 {[%clk 0:00:42.1]} 20... Qe7 {[%clk 0:01:00.3]} 21. Rb1
{[%clk 0:00:40.3]} 21... e5 {[%clk 0:00:58.7]} 22. Rcb3 {[%clk 0:00:38.1]} 22...
exd4 {[%clk 0:00:56.7]} 23. exd4 {[%clk 0:00:39]} 23... Rfe8 {[%clk 0:00:55.2]}
24. bxc6 {[%clk 0:00:38.1]} 24... bxc6 {[%clk 0:00:55.2]} 25. a5 {[%clk
0:00:35.8]} 25... Qe4 {[%clk 0:00:48.7]} 26. Qc3 {[%clk 0:00:25.1]} 26... Re6
{[%clk 0:00:38.9]} 27. Rb8 {[%clk 0:00:09.7]} 27... Rxb8 {[%clk 0:00:33]} 28.
Rxb8+ {[%clk 0:00:10.6]} 28... Kh7 {[%clk 0:00:32.7]} 29. f3 {[%clk 0:00:10.3]}
29... Qe2 {[%clk 0:00:15.5]} 30. Rb2 {[%clk 0:00:07.8]} 30... Qd1+ {[%clk
0:00:13]} 31. Kh2 {[%clk 0:00:08.3]} 31... Re1 {[%clk 0:00:13]} 32. Qc2+ {[%clk
0:00:08.5]} 32... Qxc2 {[%clk 0:00:11.8]} 33. Rxc2 {[%clk 0:00:09.4]} 33... Ra1
{[%clk 0:00:08.3]} 34. Rb2 {[%clk 0:00:08.8]} 34... Rxa5 {[%clk 0:00:07.8]} 35.
Rb7 {[%clk 0:00:09.6]} 35... Ra4 {[%clk 0:00:07.3]} 36. Rxf7 {[%clk 0:00:08.2]}
36... Rxd4 {[%clk 0:00:06.5]} 37. Rc7 {[%clk 0:00:08.7]} 37... a5 {[%clk
0:00:05.2]} 38. Rxc6 {[%clk 0:00:08.9]} 38... Rc4 {[%clk 0:00:05.8]} 39. Rc7
{[%clk 0:00:05.8]} 39... a4 {[%clk 0:00:04.4]} 40. Ra7 {[%clk 0:00:05.5]} 40...
d4 {[%clk 0:00:03.6]} 41. Ra5 {[%clk 0:00:04.2]} 41... d3 {[%clk 0:00:03.2]} 42.
Ra6 {[%clk 0:00:02.4]} 42... d2 {[%clk 0:00:01.8]} 43. Rd6 {[%clk 0:00:02.9]}
1-0

[Event "*** Titled Tuesday Blitz"]
[Site "Chess.com"]
[Date "2021.02.02"]
[Round "9"]
[White "MatyChess1"]
[Black "ChampStan"]
[Result "1-0"]
[WhiteElo "2589"]
[BlackElo "2189"]
[TimeControl "180+1"]
[EndTime "11:46:38 PST"]
[Termination "MatyChess1 won on time"]

1. e4 {[%clk 0:03:00.9]} 1... e5 {[%clk 0:02:56.1]} 2. Nf3 {[%clk 0:03:00.1]}
2... Nc6 {[%clk 0:02:54.5]} 3. Bc4 {[%clk 0:02:59.9]} 3... Bc5 {[%clk
0:02:53.5]} 4. c3 {[%clk 0:02:59.8]} 4... Nf6 {[%clk 0:02:53.5]} 5. d3 {[%clk
0:03:00]} 5... d6 {[%clk 0:02:53.5]} 6. Nbd2 {[%clk 0:02:59]} 6... a6 {[%clk
0:02:52.6]} 7. Nf1 {[%clk 0:02:54.5]} 7... Be6 {[%clk 0:02:40.9]} 8. Bb3 {[%clk
0:02:47.8]} 8... Ba7 {[%clk 0:02:39.8]} 9. Ng3 {[%clk 0:02:46.2]} 9... d5 {[%clk
0:02:20.1]} 10. exd5 {[%clk 0:02:36.1]} 10... Bxd5 {[%clk 0:02:13]} 11. Bc2
{[%clk 0:02:09.5]} 11... Qd7 {[%clk 0:02:00.4]} 12. Bg5 {[%clk 0:02:03.4]} 12...
Ng4 {[%clk 0:01:49.8]} 13. O-O {[%clk 0:01:55.9]} 13... h6 {[%clk 0:01:43.1]}
14. Bd2 {[%clk 0:01:55.8]} 14... f5 {[%clk 0:01:39.9]} 15. Nh4 {[%clk
0:01:39.3]} 15... Ne7 {[%clk 0:01:21]} 16. d4 {[%clk 0:01:22]} 16... Be6 {[%clk
0:00:56]} 17. Nhxf5 {[%clk 0:00:42.3]} 17... Nxf5 {[%clk 0:00:28.5]} 18. Qxg4
{[%clk 0:00:41.6]} 18... Nxg3 {[%clk 0:00:07.9]} 19. Qxg3 {[%clk 0:00:39.4]}
19... O-O-O {[%clk 0:00:06.9]} 20. Qxe5 {[%clk 0:00:38.6]} 20... Rde8 {[%clk
0:00:07.2]} 21. Qg3 {[%clk 0:00:37.7]} 21... c5 {[%clk 0:00:06.1]} 22. Be3
{[%clk 0:00:23.9]} 22... Rhf8 {[%clk 0:00:05.4]} 23. dxc5 {[%clk 0:00:23]} 23...
Bb8 {[%clk 0:00:06]} 24. Qh4 {[%clk 0:00:17.3]} 24... Qc7 {[%clk 0:00:04.9]} 25.
g3 {[%clk 0:00:15.1]} 25... g5 {[%clk 0:00:02.4]} 26. Qd4 {[%clk 0:00:13.4]}
26... Qc6 {[%clk 0:00:01.8]} 27. Be4 {[%clk 0:00:12.2]} 27... Qc7 {[%clk
0:00:01.7]} 28. Rad1 {[%clk 0:00:11.4]} 28... Bd7 {[%clk 0:00:02.2]} 29. Rfe1
{[%clk 0:00:11]} 29... Bc6 {[%clk 0:00:02.6]} 30. Bxc6 {[%clk 0:00:10.7]} 30...
Qxc6 {[%clk 0:00:03.2]} 31. a4 {[%clk 0:00:09.8]} 31... Bc7 {[%clk 0:00:03.5]}
32. b4 {[%clk 0:00:10]} 32... Kb8 {[%clk 0:00:04]} 33. b5 {[%clk 0:00:10.6]}
33... axb5 {[%clk 0:00:04.6]} 34. axb5 {[%clk 0:00:11.5]} 34... Qxb5 {[%clk
0:00:05.3]} 35. Rb1 {[%clk 0:00:12.1]} 35... Qc6 {[%clk 0:00:06]} 36. Red1
{[%clk 0:00:11.8]} 36... Rd8 {[%clk 0:00:05.9]} 37. Qc4 {[%clk 0:00:11.5]} 37...
Rxd1+ {[%clk 0:00:05.9]} 38. Rxd1 {[%clk 0:00:12.4]} 38... Qf3 {[%clk
0:00:06.3]} 39. Qd3 {[%clk 0:00:10.5]} 39... h5 {[%clk 0:00:06.3]} 40. Qd5
{[%clk 0:00:11]} 40... Qf6 {[%clk 0:00:05.4]} 41. Rb1 {[%clk 0:00:10.9]} 41...
b6 {[%clk 0:00:03.1]} 42. cxb6 {[%clk 0:00:10.7]} 42... Be5 {[%clk 0:00:03.7]}
43. Ra1 {[%clk 0:00:10]} 1-0

[Event "*** Titled Tuesday Blitz"]
[Site "Chess.com"]
[Date "2021.02.02"]
[Round "9"]
[White "Fischerev7"]
[Black "Bodnar_Mykola"]
[Result "1-0"]
[WhiteElo "2405"]
[BlackElo "2537"]
[TimeControl "180+1"]
[EndTime "11:46:38 PST"]
[Termination "Fischerev7 won on time"]

1. e4 {[%clk 0:02:47.6]} 1... e5 {[%clk 0:02:57.5]} 2. Nf3 {[%clk 0:02:39.4]}
2... Nc6 {[%clk 0:02:56.9]} 3. Bb5 {[%clk 0:02:36.9]} 3... a6 {[%clk 0:02:57]}
4. Ba4 {[%clk 0:02:25.6]} 4... Nf6 {[%clk 0:02:56.8]} 5. O-O {[%clk 0:02:25.3]}
5... b5 {[%clk 0:02:56.3]} 6. Bb3 {[%clk 0:02:25.1]} 6... Bc5 {[%clk 0:02:57]}
7. c3 {[%clk 0:02:24.5]} 7... O-O {[%clk 0:02:54.4]} 8. d4 {[%clk 0:02:24.6]}
8... Bb6 {[%clk 0:02:54.5]} 9. d5 {[%clk 0:02:19.3]} 9... Ne7 {[%clk 0:02:53.3]}
10. Nxe5 {[%clk 0:02:19.4]} 10... Nxe4 {[%clk 0:02:52.2]} 11. Bc2 {[%clk
0:02:08.8]} 11... Nf6 {[%clk 0:02:48.9]} 12. Bg5 {[%clk 0:01:52.6]} 12... Ng6
{[%clk 0:02:36.1]} 13. Ng4 {[%clk 0:01:42]} 13... d6 {[%clk 0:02:33.9]} 14.
Nxf6+ {[%clk 0:01:22.4]} 14... gxf6 {[%clk 0:02:34.8]} 15. Bh6 {[%clk
0:01:21.3]} 15... Re8 {[%clk 0:02:35.4]} 16. Nd2 {[%clk 0:01:17.9]} 16... Qe7
{[%clk 0:02:31.5]} 17. Qh5 {[%clk 0:01:13.3]} 17... Qe2 {[%clk 0:02:19.7]} 18.
Bxg6 {[%clk 0:00:57.7]} 18... hxg6 {[%clk 0:02:10.3]} 19. Qh4 {[%clk 0:00:56.1]}
19... g5 {[%clk 0:01:42.7]} 20. Bxg5 {[%clk 0:00:52.9]} 20... fxg5 {[%clk
0:01:43.6]} 21. Qxg5+ {[%clk 0:00:53.3]} 21... Kh7 {[%clk 0:01:44.3]} 22. Qh4+
{[%clk 0:00:37.6]} 22... Kg6 {[%clk 0:01:44.4]} 23. Nf3 {[%clk 0:00:21.7]} 23...
Qe7 {[%clk 0:00:43.3]} 24. Qg3+ {[%clk 0:00:15.3]} 24... Kh7 {[%clk 0:00:42]}
25. Rae1 {[%clk 0:00:15.7]} 25... Qd7 {[%clk 0:00:37]} 26. Qh4+ {[%clk 0:00:11]}
26... Kg7 {[%clk 0:00:36.9]} 27. Qg5+ {[%clk 0:00:10.9]} 27... Kh7 {[%clk
0:00:36.6]} 28. Qh5+ {[%clk 0:00:11.1]} 28... Kg7 {[%clk 0:00:31.9]} 29. Rxe8
{[%clk 0:00:10.9]} 29... Qxe8 {[%clk 0:00:31.1]} 30. Re1 {[%clk 0:00:11.5]}
30... Qd8 {[%clk 0:00:18.7]} 31. Re4 {[%clk 0:00:04.8]} 31... Qf6 {[%clk
0:00:17.1]} 32. Rh4 {[%clk 0:00:04.2]} 32... Bf5 {[%clk 0:00:16.7]} 33. Rf4
{[%clk 0:00:02.4]} 33... Bg6 {[%clk 0:00:09.4]} 34. Qg4 {[%clk 0:00:02.4]} 34...
Qe7 {[%clk 0:00:08.2]} 35. h4 {[%clk 0:00:02.9]} 35... Rh8 {[%clk 0:00:04.6]}
36. Ng5 {[%clk 0:00:03.3]} 36... Rh5 {[%clk 0:00:03.8]} 37. Nxf7 {[%clk
0:00:02.3]} 37... Qxf7 {[%clk 0:00:03.5]} 38. Rxf7+ {[%clk 0:00:02.3]} 38...
Kxf7 {[%clk 0:00:03.4]} 39. Qf3+ {[%clk 0:00:02.3]} 39... Kg7 {[%clk 0:00:02.6]}
40. g4 {[%clk 0:00:02.8]} 1-0

[Event "*** Titled Tuesday Blitz"]
[Site "Chess.com"]
[Date "2021.02.02"]
[Round "9"]
[White "chescomhuynya"]
[Black "markowskitomasz"]
[Result "0-1"]
[WhiteElo "2514"]
[BlackElo "2649"]
[TimeControl "180+1"]
[EndTime "11:46:39 PST"]
[Termination "markowskitomasz won by resignation"]

1. d4 {[%clk 0:03:00.9]} 1... Nf6 {[%clk 0:02:57.2]} 2. c4 {[%clk 0:03:01.1]}
2... g6 {[%clk 0:02:56.7]} 3. Nc3 {[%clk 0:03:00.6]} 3... Bg7 {[%clk 0:02:56.2]}
4. e4 {[%clk 0:03:01]} 4... O-O {[%clk 0:02:56.3]} 5. Be2 {[%clk 0:03:01.6]}
5... c6 {[%clk 0:02:56.1]} 6. Nf3 {[%clk 0:02:59.2]} 6... d5 {[%clk 0:02:54.3]}
7. e5 {[%clk 0:02:57]} 7... Ne4 {[%clk 0:02:53.7]} 8. O-O {[%clk 0:02:54]} 8...
Nxc3 {[%clk 0:02:51.7]} 9. bxc3 {[%clk 0:02:54.1]} 9... dxc4 {[%clk 0:02:51.1]}
10. Bxc4 {[%clk 0:02:54.3]} 10... c5 {[%clk 0:02:37.2]} 11. d5 {[%clk
0:02:35.7]} 11... Bg4 {[%clk 0:02:34.4]} 12. Re1 {[%clk 0:02:35.4]} 12... Nd7
{[%clk 0:02:32.6]} 13. Bf4 {[%clk 0:01:59.7]} 13... Nb6 {[%clk 0:02:27.8]} 14.
Qd3 {[%clk 0:01:52.9]} 14... Bf5 {[%clk 0:02:17.4]} 15. Qf1 {[%clk 0:01:37.4]}
15... Nxd5 {[%clk 0:02:11.2]} 16. Rad1 {[%clk 0:01:37.2]} 16... e6 {[%clk
0:02:10.2]} 17. Bg5 {[%clk 0:01:37.3]} 17... Qa5 {[%clk 0:02:06.5]} 18. Bxd5
{[%clk 0:01:37.1]} 18... exd5 {[%clk 0:02:03.7]} 19. Rxd5 {[%clk 0:01:37.1]}
19... Qxc3 {[%clk 0:01:46.4]} 20. Rc1 {[%clk 0:01:34.5]} 20... Qa3 {[%clk
0:01:46]} 21. Rdxc5 {[%clk 0:01:33.3]} 21... Qxa2 {[%clk 0:01:41.6]} 22. Rc7
{[%clk 0:01:33]} 22... Be4 {[%clk 0:01:38.7]} 23. Nd2 {[%clk 0:01:13.7]} 23...
Bc6 {[%clk 0:01:33.1]} 24. Nc4 {[%clk 0:01:08.5]} 24... Rac8 {[%clk 0:01:07.8]}
25. Rxc8 {[%clk 0:01:08]} 25... Rxc8 {[%clk 0:01:08.7]} 26. Nd6 {[%clk
0:01:05.1]} 26... Rf8 {[%clk 0:01:08.2]} 27. Bf6 {[%clk 0:01:05]} 27... Bxf6
{[%clk 0:01:04.8]} 28. exf6 {[%clk 0:01:05.9]} 28... Qe6 {[%clk 0:01:04.2]} 29.
Nc4 {[%clk 0:00:55.6]} 29... Qxf6 {[%clk 0:01:03.8]} 30. Na5 {[%clk 0:00:55.5]}
30... Bd5 {[%clk 0:00:58]} 31. Rd1 {[%clk 0:00:43.8]} 31... Qf5 {[%clk 0:00:51]}
32. Qb5 {[%clk 0:00:40.3]} 32... Be6 {[%clk 0:00:21.5]} 33. Qb4 {[%clk
0:00:32.9]} 33... b6 {[%clk 0:00:20.6]} 34. Nc6 {[%clk 0:00:33.1]} 34... Qc5
{[%clk 0:00:18.5]} 35. Ne7+ {[%clk 0:00:29.8]} 35... Kg7 {[%clk 0:00:18.2]} 36.
Qxc5 {[%clk 0:00:18.1]} 36... bxc5 {[%clk 0:00:19.1]} 37. Nc6 {[%clk 0:00:19]}
37... a6 {[%clk 0:00:17.6]} 38. Ra1 {[%clk 0:00:18.4]} 38... Rc8 {[%clk
0:00:14.8]} 39. Ne5 {[%clk 0:00:17]} 39... c4 {[%clk 0:00:14.1]} 40. Rxa6 {[%clk
0:00:15.7]} 40... c3 {[%clk 0:00:14.5]} 41. Ra1 {[%clk 0:00:16]} 41... c2 {[%clk
0:00:14.3]} 42. Nd3 {[%clk 0:00:14]} 42... Rd8 {[%clk 0:00:13.4]} 43. Nb2 {[%clk
0:00:11.3]} 43... Bb3 {[%clk 0:00:10.1]} 44. Kf1 {[%clk 0:00:02.7]} 44... Rd1+
{[%clk 0:00:08.9]} 0-1

[Event "*** Titled Tuesday Blitz"]
[Site "Chess.com"]
[Date "2021.02.02"]
[Round "9"]
[White "GCamachoMartinez"]
[Black "VladimirBugayev"]
[Result "0-1"]
[WhiteElo "2409"]
[BlackElo "2269"]
[TimeControl "180+1"]
[EndTime "11:46:40 PST"]
[Termination "VladimirBugayev won on time"]

1. d4 {[%clk 0:03:00.9]} 1... Nf6 {[%clk 0:02:59.4]} 2. c4 {[%clk 0:03:00.1]}
2... c5 {[%clk 0:02:59.8]} 3. d5 {[%clk 0:02:59.9]} 3... b5 {[%clk 0:03:00.3]}
4. Nd2 {[%clk 0:02:59.9]} 4... d6 {[%clk 0:02:53.6]} 5. e4 {[%clk 0:02:59.4]}
5... b4 {[%clk 0:02:51.1]} 6. Ngf3 {[%clk 0:02:56]} 6... g6 {[%clk 0:02:50.8]}
7. b3 {[%clk 0:02:55]} 7... Bg7 {[%clk 0:02:50.7]} 8. Bb2 {[%clk 0:02:55.5]}
8... O-O {[%clk 0:02:51.3]} 9. Bd3 {[%clk 0:02:55.6]} 9... e5 {[%clk 0:02:46.7]}
10. O-O {[%clk 0:02:45]} 10... a5 {[%clk 0:02:31.5]} 11. Ne1 {[%clk 0:02:37.1]}
11... Nh5 {[%clk 0:02:28.5]} 12. g3 {[%clk 0:02:26]} 12... Bh3 {[%clk
0:02:26.5]} 13. Ng2 {[%clk 0:02:24.8]} 13... Qd7 {[%clk 0:02:03.2]} 14. f4
{[%clk 0:02:13.5]} 14... exf4 {[%clk 0:01:54.8]} 15. Bxg7 {[%clk 0:02:12.5]}
15... Nxg7 {[%clk 0:01:48.4]} 16. Rxf4 {[%clk 0:02:03.8]} 16... a4 {[%clk
0:01:43.7]} 17. Rh4 {[%clk 0:01:38.2]} 17... Bxg2 {[%clk 0:01:38.6]} 18. Kxg2
{[%clk 0:01:39.1]} 18... a3 {[%clk 0:01:31.3]} 19. Qe2 {[%clk 0:01:20.4]} 19...
Qe7 {[%clk 0:01:30.2]} 20. Qe3 {[%clk 0:01:06.8]} 20... h5 {[%clk 0:01:26.6]}
21. Rf1 {[%clk 0:00:51.5]} 21... Nd7 {[%clk 0:01:23.4]} 22. Rhf4 {[%clk
0:00:22.9]} 22... Ne5 {[%clk 0:01:14]} 23. h3 {[%clk 0:00:22.8]} 23... Rae8
{[%clk 0:01:07.9]} 24. Nf3 {[%clk 0:00:19.8]} 24... Nxf3 {[%clk 0:00:58.8]} 25.
R4xf3 {[%clk 0:00:19.5]} 25... f5 {[%clk 0:00:50.3]} 26. Qf4 {[%clk 0:00:19.1]}
26... g5 {[%clk 0:00:40.5]} 27. Qd2 {[%clk 0:00:16.5]} 27... fxe4 {[%clk
0:00:39.5]} 28. Rxf8+ {[%clk 0:00:16.3]} 28... Rxf8 {[%clk 0:00:39.8]} 29. Rxf8+
{[%clk 0:00:16.6]} 29... Kxf8 {[%clk 0:00:40.2]} 30. Qf2+ {[%clk 0:00:16.7]}
30... Ke8 {[%clk 0:00:40.1]} 31. Be2 {[%clk 0:00:16.8]} 31... Qe5 {[%clk
0:00:37.1]} 32. g4 {[%clk 0:00:11]} 32... h4 {[%clk 0:00:35.9]} 33. Qe3 {[%clk
0:00:10.6]} 33... Ke7 {[%clk 0:00:34]} 34. Bd1 {[%clk 0:00:09.5]} 34... Ne8
{[%clk 0:00:31.8]} 35. Bc2 {[%clk 0:00:09.6]} 35... Nf6 {[%clk 0:00:32.3]} 36.
Qf2 {[%clk 0:00:09.3]} 36... Kf7 {[%clk 0:00:24.9]} 37. Kf1 {[%clk 0:00:07.7]}
37... Kg6 {[%clk 0:00:25.2]} 38. Ke2 {[%clk 0:00:07.4]} 38... Qc3 {[%clk
0:00:20.6]} 39. Kf1 {[%clk 0:00:06.9]} 39... Qe5 {[%clk 0:00:19]} 40. Kg2 {[%clk
0:00:06.2]} 40... Qf4 {[%clk 0:00:18.9]} 41. Qe2 {[%clk 0:00:05.2]} 41... Kg7
{[%clk 0:00:16.5]} 42. Qf2 {[%clk 0:00:02]} 42... Qxf2+ {[%clk 0:00:14.5]} 43.
Kxf2 {[%clk 0:00:02.9]} 43... Kf7 {[%clk 0:00:13]} 44. Ke3 {[%clk 0:00:03.1]}
44... Nd7 {[%clk 0:00:11.6]} 45. Bxe4 {[%clk 0:00:03.4]} 45... Ne5 {[%clk
0:00:12]} 46. Bf5 {[%clk 0:00:02.4]} 46... Nxc4+ {[%clk 0:00:10]} 0-1